[Event "41st Jacques-Lemans-Open 2022"]
[Site "St. Veit/Glan"]
[Date "2022.07.11"]
[Round "4.12"]
[White "Bauer, Sebastian"]
[Black "Zoernpfenning, Siegfried"]
[Result "1/2-1/2"]
[ECO "C42"]
[WhiteElo "2380"]
[BlackElo "2114"]
[Annotator "ChessBase"]
[PlyCount "71"]
[EventDate "2022.07.09"]
[EventType "swiss"]
[EventCountry "AUT"]
[SourceTitle "playchess.com"]
[Source "ChessBase"]
[SourceQuality "1"]
[TimeControl "40/5400+30:1800+30"]

1. e4 {[%emt 0:00:09]} e5 {[%emt 0:00:16]} 2. Nf3 {[%emt 0:00:39]} Nf6 {[%emt 0:00:10]} 3. Nxe5 {[%emt 0:00:30]} d6 {[%emt 0:00:12]} 4. Nf3 {[%emt 0:00:06]} Nxe4 {[%emt 0:00:08]} 5. c4 {[%emt 0:00:07]} Be7 {[%emt 0:02:54]} 6. d4 {[%emt 0:01:43]} O-O {[%emt 0:01:10]} 7. Bd3 {[%emt 0:01:09]} Nf6 {[%emt 0:01:28]} 8. h3 {[%emt 0:01:50]} d5 {[%emt 0:02:39]} 9. O-O {[%emt 0:01:51]} dxc4 {[%emt 0:00:52]} 10. Bxc4 {[%emt 0:00:10]} Bf5 {[%emt 0:00:10]} 11. Nc3 {[%emt 0:00:41]} c6 {[%emt 0:00:22]} 12. Ne5 {[%emt 0:02:41]} Nfd7 {[%emt 0:09:48]} 13. Nxf7 {[%emt 0:09:08]} Rxf7 {[%emt 0:00:15]} 14. Qb3 {[%emt 0:00:06]} Bg6 {[%emt 0:00:24]} 15. Qxb7 {[%emt 0:03:49]} Nb6 {[%emt 0:00:30]} 16. Bxf7+ {[%emt 0:00:09]} Bxf7 {[%emt 0:00:16]} 17. Re1 {[%emt 0:11:08]} Kf8 {[%emt 0:04:15]} 18. Bf4 {[%emt 0:05:59]} Qd7 {[%emt 0:02:39]} 19. Qxd7 {[%emt 0:00:46]} N8xd7 {[%emt 0:00:13]} 20. Ne4 {[%emt 0:04:48]} Bd5 {[%emt 0:10:58]} 21. Bd6 {[%emt 0:02:52]} Nc8 {[%emt 0:07:41]} 22. Bxe7+ {[%emt 0:01:41]} Nxe7 {[%emt 0:00:13]} 23. Ng5 {[%emt 0:00:37]} Nf6 {[%emt 0:01:40]} 24. Ne6+ {[%emt 0:03:27]} Kf7 {[%emt 0:00:10]} 25. Nc7 {[%emt 0:00:39]} Rb8 {[%emt 0:01:00]} 26. Nxd5 {[%emt 0:00:12]} Nfxd5 {[%emt 0:00:09]} 27. Re2 {[%emt 0:03:15]} Rb4 {[%emt 0:00:22]} 28. Rd1 {[%emt 0:00:38]} Nf5 {[%emt 0:02:14]} 29. Red2 {[%emt 0:00:13]} Ke6 {[%emt 0:03:17]} 30. g3 {[%emt 0:03:25]} a5 {[%emt 0:02:16]} 31. Kg2 {[%emt 0:02:42]} Nfe3+ 32. fxe3 {[%emt 0:00:11]} Nxe3+ {[%emt 0:01:13]} 33. Kf3 {[%emt 0:00:09]} Nxd1 {[%emt 0:00:07]} 34. Rxd1 {[%emt 0:00:25]} Rxb2 {[%emt 0:00:10]} 35. Re1+ {[%emt 0:00:37]} Kd6 {[%emt 0:01:29]} 36. Re2 {[%emt 0:02:35]} 1/2-1/2

[Event "41st Jacques-Lemans-Open 2022"]
[Site "St. Veit/Glan"]
[Date "2022.07.11"]
[Round "4.13"]
[White "Wiedner, Robert"]
[Black "Fahrner, Kurt"]
[Result "0-1"]
[ECO "C00"]
[WhiteElo "2133"]
[BlackElo "2331"]
[Annotator "ChessBase"]
[PlyCount "74"]
[EventDate "2022.07.09"]
[EventType "swiss"]
[EventCountry "AUT"]
[SourceTitle "playchess.com"]
[Source "ChessBase"]
[SourceQuality "1"]
[TimeControl "40/5400+30:1800+30"]

1. e4 {[%emt 0:00:18]} e6 {[%emt 0:00:44]} 2. Be2 {[%emt 0:02:00]} d5 {[%emt 0:00:21]} 3. d3 {[%emt 0:00:16]} Nf6 {[%emt 0:00:17]} 4. e5 {[%emt 0:00:16]} Nfd7 {[%emt 0:00:08]} 5. f4 {[%emt 0:00:17]} c5 {[%emt 0:04:03]} 6. Nf3 {[%emt 0:01:23]} Nc6 {[%emt 0:00:05]} 7. c3 {[%emt 0:00:54]} f6 {[%emt 0:01:43]} 8. d4 {[%emt 0:01:08]} Qb6 {[%emt 0:00:25]} 9. a3 {[%emt 0:00:55]} a5 {[%emt 0:00:22]} 10. Qa4 {[%emt 0:01:04]} Be7 {[%emt 0:02:40]} 11. O-O {[%emt 0:00:53]} O-O {[%emt 0:00:18]} 12. Kh1 {[%emt 0:00:46]} fxe5 {[%emt 0:02:16]} 13. fxe5 {[%emt 0:00:11]} cxd4 {[%emt 0:06:16]} 14. cxd4 {[%emt 0:00:08]} Rxf3 {[%emt 0:01:01]} 15. Bxf3 {[%emt 0:01:11]} Qxd4 {[%emt 0:00:06]} 16. Qxd4 {[%emt 0:00:47]} Nxd4 {[%emt 0:00:05]} 17. Bf4 {[%emt 0:00:54]} Nb3 {[%emt 0:07:28]} 18. Ra2 {[%emt 0:00:07]} b6 {[%emt 0:01:59]} 19. Bd1 {[%emt 0:01:27]} Ba6 {[%emt 0:03:54]} 20. Re1 {[%emt 0:00:14]} a4 {[%emt 0:10:11]} 21. Nc3 {[%emt 0:04:35]} Bc4 {[%emt 0:03:35]} 22. Bxb3 {[%emt 0:00:18]} axb3 {[%emt 0:01:58]} 23. Raa1 {[%emt 0:00:09]} Nc5 {[%emt 0:00:30]} 24. Bg3 {[%emt 0:05:31]} Nd3 25. Re2 {[%emt 0:00:13]} Bb4 {[%emt 0:31:38]} 26. Nd1 {[%emt 0:05:03]} Bc5 {[%emt 0:01:31]} 27. Nf2 {[%emt 0:09:47]} Nb4 {[%emt 0:04:22]} 28. Rd2 {[%emt 0:00:19]} Nc2 {[%emt 0:05:08]} 29. Rb1 {[%emt 0:00:21]} Be3 {[%emt 0:02:52]} 30. Rdd1 {[%emt 0:00:09]} Be2 {[%emt 0:00:29]} 31. Re1 {[%emt 0:00:08]} Nxe1 {[%emt 0:00:49]} 32. Rxe1 {[%emt 0:00:08]} Rc8 {[%emt 0:00:21]} 33. Nd1 {[%emt 0:02:42]} Bxd1 {[%emt 0:01:13]} 34. Rxe3 {[%emt 0:00:07]} Rc2 {[%emt 0:01:20]} 35. Re1 {[%emt 0:03:35]} Be2 {[%emt 0:00:10]} 36. Rb1 {[%emt 0:00:13]} Bd3 {[%emt 0:00:11]} 37. Kg1 {[%emt 0:00:35]} Be4 {[%emt 0:00:09]} 0-1

[Event "41st Jacques-Lemans-Open 2022"]
[Site "St. Veit/Glan"]
[Date "2022.07.11"]
[Round "4.14"]
[White "Guetz, Wolfgang"]
[Black "Schernthaner, David"]
[Result "0-1"]
[ECO "B50"]
[WhiteElo "2034"]
[BlackElo "2319"]
[Annotator "ChessBase"]
[PlyCount "104"]
[EventDate "2022.07.09"]
[EventType "swiss"]
[EventCountry "AUT"]
[SourceTitle "playchess.com"]
[Source "ChessBase"]
[SourceQuality "1"]
[TimeControl "40/5400+30:1800+30"]

1. e4 {[%emt 0:00:01]} c5 {[%emt 0:00:06]} 2. Nf3 {[%emt 0:00:06]} d6 {[%emt 0:00:06]} 3. c3 {[%emt 0:00:10]} Nf6 {[%emt 0:00:29]} 4. Be2 {[%emt 0:00:07]} Nbd7 {[%emt 0:05:02]} 5. d3 {[%emt 0:01:09]} e5 {[%emt 0:02:42]} 6. O-O {[%emt 0:01:22]} Be7 {[%emt 0:01:00]} 7. a4 {[%emt 0:02:14]} O-O {[%emt 0:02:52]} 8. Nbd2 {[%emt 0:01:15]} Re8 {[%emt 0:00:51]} 9. Re1 {[%emt 0:01:07]} Nf8 {[%emt 0:05:05]} 10. h3 {[%emt 0:02:26]} Ng6 {[%emt 0:00:49]} 11. d4 {[%emt 0:11:19]} h6 {[%emt 0:10:39]} 12. Bb5 {[%emt 0:04:06]} Bd7 {[%emt 0:04:24]} 13. Nc4 {[%emt 0:07:08]} Bxb5 {[%emt 0:12:38]} 14. axb5 {[%emt 0:00:08]} exd4 {[%emt 0:00:32]} 15. cxd4 {[%emt 0:00:49]} d5 {[%emt 0:06:07]} 16. exd5 {[%emt 0:05:34]} Qxd5 {[%emt 0:04:48]} 17. Nce5 {[%emt 0:12:28]} Nf8 {[%emt 0:02:48]} 18. Nd3 {[%emt 0:08:13]} cxd4 {[%emt 0:02:02]} 19. Re5 {[%emt 0:11:55]} Qd7 {[%emt 0:01:30]} 20. Nf4 {[%emt 0:08:46]} Red8 {[%emt 0:06:37]} 21. Qd3 {[%emt 0:03:35]} Bd6 {[%emt 0:02:45]} 22. Rf5 {[%emt 0:01:18]} N8h7 {[%emt 0:07:18]} 23. Nh5 {[%emt 0:01:31]} Nxh5 {[%emt 0:01:03]} 24. Rxh5 {[%emt 0:00:01]} Qe6 {[%emt 0:01:50]} 25. Rh4 {[%emt 0:04:14]} Bc5 {[%emt 0:05:37]} 26. Bd2 {[%emt 0:01:24]} Qg6 {[%emt 0:01:13]} 27. Qc4 {[%emt 0:02:05]} Rac8 {[%emt 0:01:32]} 28. Rg4 {[%emt 0:00:39]} Qf6 {[%emt 0:00:36]} 29. Re1 {[%emt 0:01:50]} Nf8 {[%emt 0:02:44]} 30. Qd3 {[%emt 0:03:07]} Ng6 {[%emt 0:01:05]} 31. h4 {[%emt 0:00:38]} Rd5 {[%emt 0:00:45]} 32. Qc4 {[%emt 0:01:13]} Qf5 {[%emt 0:03:14]} 33. Rxg6 {[%emt 0:00:45]} Bd6 {[%emt 0:01:57]} 34. Qa2 {[%emt 0:02:06]} fxg6 {[%emt 0:00:22]} 35. Nxd4 {[%emt 0:00:30]} Qf7 {[%emt 0:00:20]} 36. Bc3 {[%emt 0:00:34]} Rf5 {[%emt 0:01:25]} 37. Qxf7+ {[%emt 0:01:31]} Rxf7 {[%emt 0:00:01]} 38. Re6 {[%emt 0:00:09]} Rf6 {[%emt 0:00:39]} 39. Re4 {[%emt 0:00:23]} Bc5 {[%emt 0:02:11]} 40. Nf3 {[%emt 0:00:39]} Rf7 {[%emt 0:01:10]} 41. Re6 {[%emt 0:02:14]} Kh7 {[%emt 0:03:43]} 42. Re5 {[%emt 0:07:56]} Be7 {[%emt 0:04:55]} 43. Re6 {[%emt 0:03:02]} Bf6 {[%emt 0:01:04]} 44. Ne5 {[%emt 0:01:35]} Re7 {[%emt 0:01:01]} 45. Rxe7 {[%emt 0:00:33]} Bxe7 {[%emt 0:00:04]} 46. g3 {[%emt 0:02:24]} Rc5 {[%emt 0:02:59]} 47. b6 {[%emt 0:02:00]} a6 {[%emt 0:02:51]} 48. Kg2 {[%emt 0:01:38]} Rb5 {[%emt 0:00:19]} 49. Kf3 {[%emt 0:06:08]} Rxb6 {[%emt 0:02:22]} 50. Ke4 {[%emt 0:00:39]} Rb5 {[%emt 0:00:26]} 51. Nd7 {[%emt 0:04:19]} Kg8 {[%emt 0:01:08]} 52. Ne5 {[%emt 0:00:07]} Bf6 {[%emt 0:03:41]} 0-1

[Event "41st Jacques-Lemans-Open 2022"]
[Site "St. Veit/Glan"]
[Date "2022.07.11"]
[Round "4.15"]
[White "Hresc, Vladimir"]
[Black "Navaratnam, Rohan Shan Tze"]
[Result "0-1"]
[ECO "B40"]
[WhiteElo "2308"]
[BlackElo "2071"]
[Annotator "ChessBase"]
[PlyCount "136"]
[EventDate "2022.07.09"]
[EventType "swiss"]
[EventCountry "AUT"]
[SourceTitle "playchess.com"]
[Source "ChessBase"]
[SourceQuality "1"]
[TimeControl "40/5400+30:1800+30"]

1. e4 {[%emt 0:00:15]} c5 {[%emt 0:00:12]} 2. Nf3 {[%emt 0:00:23]} e6 {[%emt 0:00:07]} 3. d4 {[%emt 0:00:13]} cxd4 {[%emt 0:00:06]} 4. Nxd4 {[%emt 0:00:09]} Nf6 {[%emt 0:00:06]} 5. Nc3 {[%emt 0:00:53]} Nc6 {[%emt 0:00:09]} 6. Ndb5 {[%emt 0:00:12]} Bc5 {[%emt 0:00:14]} 7. Bf4 {[%emt 0:05:05]} O-O {[%emt 0:00:17]} 8. Bc7 {[%emt 0:02:26]} Qe7 {[%emt 0:00:09]} 9. Bd6 {[%emt 0:01:10]} Bxd6 {[%emt 0:00:09]} 10. Qxd6 {[%emt 0:00:09]} Qd8 {[%emt 0:00:09]} 11. O-O-O {[%emt 0:05:33]} a6 {[%emt 0:00:07]} 12. Nd4 {[%emt 0:00:39]} Na5 {[%emt 0:00:09]} 13. Be2 {[%emt 0:06:20]} b5 {[%emt 0:00:19]} 14. h4 {[%emt 0:05:08]} Bb7 {[%emt 0:00:54]} 15. f3 {[%emt 0:03:59]} Rc8 {[%emt 0:06:31]} 16. Nb3 {[%emt 0:04:16]} Rc6 {[%emt 0:10:48]} 17. Qd4 {[%emt 0:03:12]} Qc7 {[%emt 0:07:14]} 18. Kb1 {[%emt 0:06:15]} Rd8 {[%emt 0:23:30]} 19. e5 {[%emt 0:08:09]} Ne8 {[%emt 0:00:58]} 20. f4 {[%emt 0:03:20]} Nc4 {[%emt 0:01:36]} 21. Ne4 {[%emt 0:10:00]} d5 {[%emt 0:05:04]} 22. Nec5 {[%emt 0:06:48]} Rc8 {[%emt 0:03:51]} 23. Nxb7 {[%emt 0:04:44]} Qxb7 {[%emt 0:00:21]} 24. Qd3 {[%emt 0:03:05]} b4 {[%emt 0:02:32]} 25. Nd4 {[%emt 0:01:46]} Rc5 {[%emt 0:00:07]} 26. Qg3 {[%emt 0:01:01]} Nc7 {[%emt 0:04:07]} 27. f5 {[%emt 0:02:19]} Nb5 {[%emt 0:01:51]} 28. f6 {[%emt 0:02:48]} g6 {[%emt 0:00:45]} 29. Nxb5 {[%emt 0:06:46]} Qxb5 {[%emt 0:00:02]} 30. Bxc4 {[%emt 0:02:00]} Qxc4 {[%emt 0:03:52]} 31. Rd2 {[%emt 0:00:19]} h5 {[%emt 0:05:41]} 32. Qe3 {[%emt 0:02:21]} Kh7 {[%emt 0:00:13]} 33. g3 {[%emt 0:00:32]} Qe4 {[%emt 0:02:48]} 34. Re1 {[%emt 0:00:14]} Qxe3 {[%emt 0:02:01]} 35. Rxe3 {[%emt 0:00:02]} g5 {[%emt 0:00:26]} 36. a3 {[%emt 0:00:45]} a5 {[%emt 0:01:40]} 37. axb4 {[%emt 0:01:06]} axb4 {[%emt 0:00:01]} 38. Rd4 {[%emt 0:00:34]} Rc4 {[%emt 0:00:19]} 39. Red3 {[%emt 0:00:54]} Rxd4 {[%emt 0:04:23]} 40. Rxd4 {[%emt 0:00:22]} Rc4 {[%emt 0:00:05]} 41. Rd3 {[%emt 0:05:11]} gxh4 {[%emt 0:02:03]} 42. gxh4 {[%emt 0:01:12]} Rxh4 {[%emt 0:01:10]} 43. Ka2 {[%emt 0:00:11]} Kg6 {[%emt 0:03:59]} 44. Rf3 {[%emt 0:03:24]} Rg4 {[%emt 0:02:25]} 45. c3 {[%emt 0:00:14]} bxc3 {[%emt 0:01:07]} 46. Rxc3 {[%emt 0:00:01]} h4 {[%emt 0:03:40]} 47. Rc8 {[%emt 0:00:26]} Kf5 {[%emt 0:01:06]} 48. Rf8 {[%emt 0:00:08]} Kxe5 {[%emt 0:00:21]} 49. Rxf7 {[%emt 0:00:02]} Ra4+ {[%emt 0:01:45]} 50. Kb3 {[%emt 0:00:11]} Rf4 {[%emt 0:00:02]} 51. Kc3 {[%emt 0:00:14]} Rxf6 {[%emt 0:00:19]} 52. Rh7 {[%emt 0:00:01]} Rf3+ {[%emt 0:02:00]} 53. Kb4 {[%emt 0:00:40]} h3 {[%emt 0:00:05]} 54. Ka4 {[%emt 0:00:17]} Kd6 {[%emt 0:07:00]} 55. b4 {[%emt 0:01:24]} Kc6 {[%emt 0:00:03]} 56. Rh8 {[%emt 0:00:45]} Kb6 {[%emt 0:09:26]} 57. Rb8+ {[%emt 0:00:15]} Kc7 {[%emt 0:00:02]} 58. Rh8 {[%emt 0:00:09]} d4 {[%emt 0:03:23]} 59. b5 {[%emt 0:02:00]} d3 {[%emt 0:01:15]} 60. Kb3 {[%emt 0:00:43]} d2+ {[%emt 0:00:08]} 61. Kc2 {[%emt 0:00:01]} Rd3 {[%emt 0:00:06]} 62. Kd1 {[%emt 0:00:32]} e5 {[%emt 0:00:23]} 63. Rh4 {[%emt 0:02:24]} Kb6 {[%emt 0:01:05]} 64. Re4 {[%emt 0:10:24]} h2 {[%emt 0:01:24]} 65. Rh4 {[%emt 0:00:26]} e4 {[%emt 0:00:03]} 66. Rxh2 {[%emt 0:00:42]} e3 {[%emt 0:00:02]} 67. Rh1 {[%emt 0:01:48]} Rc3 {[%emt 0:00:18]} 68. Ke2 {[%emt 0:01:31]} Rc1 {[%emt 0:00:13]} 0-1

[Event "41st Jacques-Lemans-Open 2022"]
[Site "St. Veit/Glan"]
[Date "2022.07.11"]
[Round "4.16"]
[White "Dotzer, Lukas"]
[Black "Hinteregger, Arthur"]
[Result "1/2-1/2"]
[ECO "C03"]
[WhiteElo "2269"]
[BlackElo "1993"]
[Annotator "ChessBase"]
[PlyCount "73"]
[EventDate "2022.07.09"]
[EventType "swiss"]
[EventCountry "AUT"]
[SourceTitle "playchess.com"]
[Source "ChessBase"]
[SourceQuality "1"]
[TimeControl "40/5400+30:1800+30"]

1. e4 {[%emt 0:00:02]} e6 {[%emt 0:00:09]} 2. d4 {[%emt 0:00:10]} d5 {[%emt 0:00:07]} 3. Nd2 {[%emt 0:00:14]} Be7 {[%emt 0:00:11]} 4. Ngf3 {[%emt 0:00:41]} Nf6 {[%emt 0:00:54]} 5. e5 {[%emt 0:02:22]} Nfd7 {[%emt 0:00:11]} 6. c4 {[%emt 0:02:30]} c5 {[%emt 0:01:55]} 7. cxd5 {[%emt 0:18:19]} exd5 {[%emt 0:00:06]} 8. dxc5 {[%emt 0:01:21]} Nc6 {[%emt 0:01:23]} 9. Bb5 {[%emt 0:09:56]} Nxc5 {[%emt 0:05:22]} 10. O-O {[%emt 0:18:58]} O-O {[%emt 0:03:00]} 11. b3 {[%emt 0:10:05]} Qb6 {[%emt 0:06:12]} 12. Bxc6 {[%emt 0:05:29]} bxc6 {[%emt 0:00:09]} 13. Nd4 {[%emt 0:06:00]} Nd3 {[%emt 0:06:06]} 14. N2f3 {[%emt 0:00:34]} Nxc1 {[%emt 0:00:36]} 15. Rxc1 {[%emt 0:00:40]} c5 {[%emt 0:01:03]} 16. Ne2 {[%emt 0:03:18]} Be6 {[%emt 0:13:12]} 17. Nf4 {[%emt 0:01:49]} Rad8 {[%emt 0:00:36]} 18. Qd2 {[%emt 0:06:03]} h6 {[%emt 0:03:15]} 19. Nxe6 {[%emt 0:01:47]} Qxe6 {[%emt 0:03:33]} 20. Qa5 {[%emt 0:02:41]} Qb6 {[%emt 0:01:03]} 21. Qa4 {[%emt 0:01:14]} a6 {[%emt 0:06:30]} 22. Rfd1 {[%emt 0:01:10]} Qe6 {[%emt 0:02:37]} 23. h3 {[%emt 0:01:24]} Rc8 {[%emt 0:02:21]} 24. Rc2 {[%emt 0:01:06]} Rfd8 {[%emt 0:00:54]} 25. Re2 {[%emt 0:01:44]} Kh8 {[%emt 0:05:43]} 26. Ne1 {[%emt 0:01:17]} g5 {[%emt 0:17:41]} 27. Qg4 {[%emt 0:00:40]} Qxg4 {[%emt 0:01:03]} 28. hxg4 {[%emt 0:00:06]} c4 {[%emt 0:00:38]} 29. Nc2 {[%emt 0:00:57]} cxb3 {[%emt 0:01:43]} 30. axb3 {[%emt 0:00:02]} Rc3 {[%emt 0:01:38]} 31. Nd4 {[%emt 0:01:39]} Bc5 {[%emt 0:00:39]} 32. e6 {[%emt 0:00:24]} Bxd4 {[%emt 0:01:47]} 33. e7 {[%emt 0:00:53]} Re8 {[%emt 0:00:30]} 34. Rxd4 {[%emt 0:00:09]} Rc7 {[%emt 0:00:19]} 35. Rxd5 {[%emt 0:00:10]} Rcxe7 {[%emt 0:00:09]} 36. Rxe7 {[%emt 0:00:56]} Rxe7 {[%emt 0:00:05]} 37. Ra5 {[%emt 0:00:42]} 1/2-1/2

[Event "41st Jacques-Lemans-Open 2022"]
[Site "St. Veit/Glan"]
[Date "2022.07.11"]
[Round "4.17"]
[White "Fuchs, Patrick"]
[Black "Novosel, Lovro"]
[Result "0-1"]
[ECO "B51"]
[WhiteElo "1990"]
[BlackElo "2255"]
[Annotator "ChessBase"]
[PlyCount "100"]
[EventDate "2022.07.09"]
[EventType "swiss"]
[EventCountry "AUT"]
[SourceTitle "playchess.com"]
[Source "ChessBase"]
[SourceQuality "1"]
[TimeControl "40/5400+30:1800+30"]

1. e4 {[%emt 0:00:05]} c5 {[%emt 0:00:12]} 2. Nf3 {[%emt 0:00:20]} d6 {[%emt 0:00:13]} 3. Bb5+ {[%emt 0:00:23]} Nd7 {[%emt 0:00:17]} 4. O-O {[%emt 0:00:18]} a6 {[%emt 0:00:05]} 5. Bd3 {[%emt 0:00:18]} Ngf6 {[%emt 0:00:19]} 6. Re1 {[%emt 0:00:14]} e6 {[%emt 0:00:15]} 7. c3 {[%emt 0:00:59]} b5 {[%emt 0:01:46]} 8. a4 {[%emt 0:00:25]} c4 {[%emt 0:03:25]} 9. Bf1 {[%emt 0:00:36]} Bb7 {[%emt 0:00:32]} 10. axb5 {[%emt 0:00:10]} axb5 {[%emt 0:00:26]} 11. Rxa8 {[%emt 0:00:08]} Qxa8 {[%emt 0:02:58]} 12. Na3 {[%emt 0:00:17]} Qa5 {[%emt 0:03:44]} 13. d3 {[%emt 0:35:44]} cxd3 {[%emt 0:13:46]} 14. b4 {[%emt 0:08:05]} Qb6 {[%emt 0:04:17]} 15. Bxd3 {[%emt 0:13:35]} Be7 {[%emt 0:09:43]} 16. Nxb5 {[%emt 0:11:54]} Bxe4 {[%emt 0:08:19]} 17. c4 {[%emt 0:17:38]} Bxd3 {[%emt 0:08:36]} 18. Be3 {[%emt 0:01:55]} Qc6 {[%emt 0:01:03]} 19. Qxd3 {[%emt 0:00:16]} O-O {[%emt 0:00:29]} 20. Bf4 {[%emt 0:02:05]} Ne5 {[%emt 0:22:00]} 21. Bxe5 {[%emt 0:01:08]} dxe5 {[%emt 0:00:02]} 22. Nxe5 {[%emt 0:00:10]} Qa6 {[%emt 0:00:12]} 23. c5 {[%emt 0:03:14]} Nd5 {[%emt 0:01:04]} 24. Qc4 {[%emt 0:01:16]} Rb8 {[%emt 0:01:50]} 25. Nd4 {[%emt 0:01:09]} Qxc4 {[%emt 0:00:34]} 26. Nxc4 {[%emt 0:00:01]} Rxb4 {[%emt 0:00:11]} 27. Rc1 {[%emt 0:00:33]} Bxc5 {[%emt 0:00:15]} 28. Nc6 {[%emt 0:00:45]} Ra4 {[%emt 0:00:17]} 29. Nb2 {[%emt 0:00:21]} Ra2 {[%emt 0:00:30]} 30. Nd3 {[%emt 0:00:03]} Bd6 {[%emt 0:01:51]} 31. g3 {[%emt 0:00:59]} g5 {[%emt 0:01:44]} 32. Nc5 {[%emt 0:00:45]} h6 {[%emt 0:01:33]} 33. Ne4 {[%emt 0:00:20]} Ba3 {[%emt 0:00:14]} 34. Rc4 {[%emt 0:00:24]} Bf8 {[%emt 0:03:42]} 35. Kf1 {[%emt 0:00:36]} Kg7 {[%emt 0:00:45]} 36. Ne5 {[%emt 0:00:26]} Ra1+ {[%emt 0:00:52]} 37. Kg2 {[%emt 0:00:01]} f6 {[%emt 0:01:20]} 38. Nd7 {[%emt 0:00:39]} Be7 {[%emt 0:00:01]} 39. Ndc5 {[%emt 0:00:59]} Kf7 {[%emt 0:00:47]} 40. Nd3 {[%emt 0:00:33]} Ra3 {[%emt 0:01:00]} 41. Ndc5 {[%emt 0:01:22]} f5 {[%emt 0:00:41]} 42. Nd2 {[%emt 0:00:11]} Ra2 {[%emt 0:00:14]} 43. Ncb3 {[%emt 0:00:01]} Rb2 {[%emt 0:02:06]} 44. Kf1 {[%emt 0:05:56]} h5 {[%emt 0:07:23]} 45. Ke2 {[%emt 0:03:53]} g4 {[%emt 0:02:28]} 46. Nd4 {[%emt 0:00:32]} Bf6 {[%emt 0:03:28]} 47. Nc2 {[%emt 0:02:00]} Nc3+ {[%emt 0:04:44]} 48. Kd3 {[%emt 0:00:33]} Na2 {[%emt 0:00:43]} 49. Nd4 {[%emt 0:03:20]} Rb6 {[%emt 0:03:55]} 50. Nc6 {[%emt 0:01:29]} Rxc6 {[%emt 0:00:42]} 0-1

[Event "41st Jacques-Lemans-Open 2022"]
[Site "St. Veit/Glan"]
[Date "2022.07.11"]
[Round "4.18"]
[White "Caruso, Augusto"]
[Black "Tumanyan, Gor"]
[Result "1-0"]
[ECO "B27"]
[WhiteElo "2132"]
[BlackElo "1884"]
[Annotator "ChessBase"]
[PlyCount "75"]
[EventDate "2022.07.09"]
[EventType "swiss"]
[EventCountry "AUT"]
[SourceTitle "playchess.com"]
[Source "ChessBase"]
[SourceQuality "1"]
[TimeControl "40/5400+30:1800+30"]

1. e4 {[%emt 0:00:10]} c5 {[%emt 0:00:02]} 2. Nf3 {[%emt 0:00:49]} g6 {[%emt 0:00:03]} 3. d4 {[%emt 0:02:13]} cxd4 {[%emt 0:00:40]} 4. Qxd4 {[%emt 0:01:34]} Nf6 {[%emt 0:00:05]} 5. Qa4 {[%emt 0:06:58]} Nc6 {[%emt 0:03:05]} 6. Nc3 {[%emt 0:00:29]} d6 {[%emt 0:01:22]} 7. e5 {[%emt 0:00:40]} dxe5 {[%emt 0:00:06]} 8. Nxe5 {[%emt 0:00:03]} Bd7 {[%emt 0:00:10]} 9. Nxd7 {[%emt 0:00:32]} Qxd7 {[%emt 0:00:06]} 10. Be3 {[%emt 0:01:40]} Bg7 {[%emt 0:03:19]} 11. Rd1 {[%emt 0:00:43]} Qf5 {[%emt 0:04:06]} 12. Bd3 {[%emt 0:03:38]} Qh5 {[%emt 0:07:41]} 13. Ba6 {[%emt 0:03:36]} Rd8 {[%emt 0:39:51]} 14. Bxb7 {[%emt 0:07:09]} Rxd1+ {[%emt 0:02:12]} 15. Nxd1 {[%emt 0:00:08]} Qa5+ {[%emt 0:00:04]} 16. Qxa5 {[%emt 0:04:01]} Nxa5 {[%emt 0:00:38]} 17. Bf3 {[%emt 0:00:13]} a6 {[%emt 0:06:36]} 18. b3 {[%emt 0:04:47]} Kd7 {[%emt 0:02:29]} 19. Nb2 {[%emt 0:04:23]} Rc8 {[%emt 0:05:26]} 20. c4 {[%emt 0:05:00]} Ke8 {[%emt 0:06:16]} 21. Na4 {[%emt 0:04:08]} Nd7 {[%emt 0:00:37]} 22. Ke2 {[%emt 0:00:15]} f5 {[%emt 0:02:32]} 23. Rd1 {[%emt 0:03:21]} Rc7 {[%emt 0:02:31]} 24. Nb6 {[%emt 0:09:53]} e5 {[%emt 0:06:06]} 25. Nxd7 {[%emt 0:03:51]} Rxd7 {[%emt 0:00:06]} 26. Bb6 {[%emt 0:00:19]} Nxc4 {[%emt 0:01:24]} 27. Rxd7 {[%emt 0:04:22]} Kxd7 {[%emt 0:00:12]} 28. bxc4 {[%emt 0:00:07]} e4 {[%emt 0:00:04]} 29. Bxe4 {[%emt 0:00:05]} fxe4 {[%emt 0:00:01]} 30. Ke3 {[%emt 0:00:08]} Kc6 {[%emt 0:00:57]} 31. Bd4 {[%emt 0:00:06]} Bf8 {[%emt 0:00:37]} 32. Kxe4 {[%emt 0:00:07]} Bd6 {[%emt 0:00:38]} 33. f4 {[%emt 0:00:50]} Bf8 {[%emt 0:00:47]} 34. g4 {[%emt 0:00:13]} a5 {[%emt 0:00:29]} 35. a4 {[%emt 0:00:19]} Bd6 {[%emt 0:00:18]} 36. h3 {[%emt 0:00:47]} Bc7 {[%emt 0:00:39]} 37. f5 {[%emt 0:00:50]} gxf5+ {[%emt 0:03:36]} 38. gxf5 {[%emt 0:00:43]} 1-0